fUST/lending_fUST_20240409
["ID","MTS","AMOUNT","RATE_DAILY","PERIOD"]
[321943467,1712644260976,-1360.76,0.00038082,5]
[321943468,1712644260988,-828.56,0.00038082,5]
[321943469,1712644260998,-500.0,0.00038082,5]
[321943470,1712644261008,-500.0,0.00038082,5]
[321943471,1712644261017,-993.44,0.00038082,5]
[321943472,1712644261029,-500.0,0.00038082,5]
[321943473,1712644261039,-151.0,0.00038082,2]
[321943474,1712644261050,-620.78,0.00038082,5]
[321943475,1712644261060,-220.95243177,0.00038082,5]
[321943476,1712644261069,-151.0,0.00038082,2]
[321943477,1712644261078,-1927.12,0.00038082,5]
[321943478,1712644261087,-2878.25,0.00038082,5]
[321943479,1712644261097,-500.0,0.00038082,5]
[321943480,1712644261106,-500.0,0.00038082,5]
[321943481,1712644261115,-500.0,0.00038082,5]
[321943482,1712644261125,-707.11,0.00038082,5]
[321943483,1712644261135,-500.0,0.00038082,5]
[321943484,1712644261145,-500.0,0.00038082,5]
[321943485,1712644261155,-1211.92,0.00038082,5]
[321943486,1712644261165,-358.28890455,0.00038082,5]
[321943487,1712644261174,-662.1,0.00038082,5]
[321943488,1712644261183,-286.4,0.00038082,2]
[321943489,1712644261193,-286.4,0.00038082,2]
[321943490,1712644261202,-784.21,0.00038082,5]
[321943491,1712644261211,-500.0,0.00038082,5]
[321943492,1712644261219,-500.0,0.00038082,5]
[321943493,1712644261229,-500.0,0.00038082,5]
[321943494,1712644261239,-371.54199,0.00038082,2]
[321943495,1712644261248,-371.54199,0.00038082,2]
[321943496,1712644261256,-3163.23,0.00038082,5]
[321943497,1712644261266,-4188.93,0.00038082,5]
[321943498,1712644261274,-2244.88,0.00038082,5]
[321943499,1712644261283,-824.79,0.00038082,5]
[321943500,1712644261292,-7674.51,0.00038082,5]
[321943501,1712644261301,-1192.88,0.00038082,5]
[321943502,1712644261310,-2016.47,0.00038082,5]
[321943503,1712644261320,-500.0,0.00038082,5]
[321943504,1712644261329,-500.0,0.00038082,5]
[321943505,1712644261338,-500.0,0.00038082,5]
[321943506,1712644261347,-1689.72,0.00038082,5]
[321943507,1712644261355,-505.6,0.00038082,5]
[321943508,1712644261365,-1558.55,0.00038082,5]
[321943509,1712644261373,-1904.85,0.00038082,5]
[321943510,1712644261382,-2356.88,0.00038082,5]
[321943511,1712644261391,-500.0,0.00038082,5]
[321943512,1712644261400,-4570.78,0.00038082,5]
[321943513,1712644261409,-169.385764,0.00038082,2]
[321943514,1712644261418,-420.08363363,0.00038082,5]
[321943515,1712644261426,-2823.83,0.00038082,5]
[321943516,1712644261435,-500.0,0.00038082,5]
[321943517,1712644261445,-500.0,0.00038082,5]
[321943518,1712644261454,-3703.71,0.00038082,5]
[321943519,1712644261463,-873.77,0.00038082,5]
[321943520,1712644261472,-1560.45,0.00038082,5]
[321943521,1712644261481,-784.8,0.00038082,5]
[321943522,1712644261489,-2227.54,0.00038082,5]
[321943523,1712644261498,-2502.36,0.00038082,5]
[321943524,1712644261507,-1211.4,0.00038082,5]
[321943525,1712644261516,-739.26,0.00038082,5]
[321943526,1712644261526,-951.7,0.00038082,5]
[321943527,1712644261535,-2674.63,0.00038082,5]
[321943528,1712644261544,-500.0,0.00038082,5]
[321943529,1712644261555,-646.31,0.00038082,5]
[321943530,1712644261564,-500.0,0.00038082,5]
[321943531,1712644261574,-2199.43,0.00038082,5]
[321943532,1712644261583,-1846.58,0.00038082,5]
[321943533,1712644261592,-27763.92,0.00038082,5]
[321943534,1712644261602,-616.89,0.00038082,5]
[321943535,1712644261611,-500.0,0.00038082,5]
[321943536,1712644261620,-500.0,0.00038082,5]
[321943537,1712644261629,-5327.83,0.00038082,5]
[321943538,1712644261639,-500.0,0.00038082,5]
[321943539,1712644261648,-21357.3,0.00038082,5]
[321943540,1712644261658,-576.52,0.00038082,5]
[321943541,1712644261668,-3893.51,0.00038082,5]
[321943542,1712644261677,-218.048773,0.00038082,2]
[321943543,1712644261688,-950.88,0.00038082,5]
[321943544,1712644261697,-546.89,0.00038082,5]
[321943545,1712644261706,-583.29,0.00038082,5]
[321943546,1712644261716,-218.048773,0.00038082,2]
[321943547,1712644261725,-8330.43,0.00038082,5]
[321943548,1712644261734,-946.36,0.00038082,5]
[321943549,1712644261743,-2691.11,0.00038082,5]
[321943550,1712644261752,-500.0,0.00038082,5]
[321943551,1712644261761,-504.27,0.00038082,5]
[321943552,1712644261770,-500.0,0.00038082,5]
[321943553,1712644261779,-1888.59,0.00038082,5]
[321943554,1712644261788,-500.0,0.00038082,5]
[321943555,1712644261797,-1143.33,0.00038082,5]
[321943556,1712644261806,-784.59,0.00038082,5]
[321943557,1712644261815,-4762.99,0.00038082,5]
[321943558,1712644261888,-2661.19,0.00038082,5]
[321943559,1712644261898,-517.68,0.00038082,5]
[321943560,1712644261907,-9659.96,0.00038082,5]
[321943561,1712644261918,-153.0,0.00038099,2]
[321943562,1712644261927,-153.0,0.00038099,2]
[321943563,1712644261936,-153.0,0.00038099,2]
[321943564,1712644261946,-306.0,0.00038099,2]
[321943565,1712644261955,-153.0,0.00038099,2]
[321943566,1712644261964,-306.0,0.00038099,2]
[321943567,1712644261973,-153.0,0.00038099,2]
[321943568,1712644261982,-153.0,0.00038099,2]
[321943569,1712644261991,-154.76623,0.00038099,2]
[321943570,1712644262001,-663.52816129,0.000381,2]
[321943571,1712644262010,-283.35107247,0.0003814,4]
[321943572,1712644262019,-162.31,0.0003817,35]
[321943573,1712644262028,-399.12,0.00038179,35]
[321943574,1712644262037,-361.9,0.00038179,35]
[321943575,1712644262046,-6177.05,0.0003818,35]
[321943576,1712644262055,-157.0,0.0003818,35]
[321943577,1712644262064,-434.914109,0.0003818,2]
[321943578,1712644262072,-434.914109,0.0003818,2]
[321943579,1712644262081,-151.0,0.0003818,2]
[321943580,1712644262091,-150.98490151,0.00038181,2]
[321943581,1712644262100,-398.0,0.00038189,35]
[321943582,1712644262109,-353.0,0.00038189,35]
[321943583,1712644262118,-6173.0,0.0003819,35]
[321943584,1712644262128,-286.4,0.000382,2]
[321943585,1712644262137,-286.4,0.000382,2]
[321943586,1712644262147,-286.4,0.000382,2]
[321943587,1712644262158,-286.4,0.000382,2]
[321943588,1712644262170,-286.4,0.000382,2]
[321943589,1712644262180,-286.4,0.000382,2]
[321943590,1712644262190,-286.4,0.000382,2]
[321943591,1712644262202,-286.4,0.000382,2]
[321943592,1712644262211,-371.54199,0.000382,2]
[321943593,1712644262221,-371.54199,0.000382,2]
[321943594,1712644262231,-371.54199,0.000382,2]
[321943595,1712644262243,-371.54199,0.000382,2]
[321943596,1712644262251,-371.54199,0.000382,2]
[321943597,1712644262260,-371.54199,0.000382,2]
[321943598,1712644262270,-371.54199,0.000382,2]
[321943599,1712644262278,-371.541987,0.000382,2]
[321943600,1712644262288,-434.914109,0.000382,2]
[321943601,1712644262297,-434.914109,0.000382,2]
[321943602,1712644262306,-434.914109,0.000382,2]
[321943603,1712644262316,-434.914109,0.000382,2]
[321943604,1712644262325,-434.914109,0.000382,2]
[321943605,1712644262335,-434.914102,0.000382,2]
[321943606,1712644262344,-151.0,0.000382,2]
[321943607,1712644262352,-151.0,0.000382,2]
[321943608,1712644262362,-151.0,0.000382,2]
[321943609,1712644262371,-151.0,0.00038201,2]
[321943610,1712644262383,-151.0,0.00038201,2]
[321943611,1712644262402,-151.0,0.00038201,2]
[321943612,1712644262417,-151.0,0.00038201,2]
[321943613,1712644262437,-183.841012,0.00038201,2]
[321943614,1712644262454,-1561320.09933021,0.00038209,60]
[321943615,1712644262694,-3886.503569,0.00038209,60]
[321943616,1712644262707,-1555.46740011,0.00038209,60]
[321943617,1712644263866,156.78359481,0.00026709,2]
[321943622,1712644889909,264.59046087,0.00026065,7]
[321943624,1712645201170,-244.87152817,0.00024278,2]
[321943625,1712645245116,-158.0720201,0.00024275,2]
[321943626,1712645251106,-766.80977754,0.00024275,2]
[321943627,1712645251126,-157.26509838,0.00024275,2]
[321943628,1712645251145,-242.74204017,0.00024276,2]
[321943629,1712645251166,-154.98450155,0.00024277,2]
[321943630,1712645251186,-154.98450155,0.00024277,2]
[321943631,1712645251205,-27.02206614,0.00024278,2]
[321943632,1712645251224,-154.98450155,0.00024278,2]
[321943633,1712645251246,-989.96227436,0.00024278,2]
[321943634,1712645268999,264.59046087,0.00026066,7]
[321943635,1712645370113,-153.94352923,0.00024183,2]
[321943636,1712645370133,-302.8989922,0.00024282,2]
[321943683,1712645433008,-582.6,0.00024282,2]
[321943705,1712645438767,-710.49758474,0.00024282,2]
[321943707,1712645438779,-334.68381011,0.00024282,2]
[321943709,1712645438789,-677.65372391,0.00024283,2]
[321943711,1712645438798,-175.540888,0.00024286,2]
[321943713,1712645438807,-203.69871,0.00024319,2]
[321943715,1712645438817,-307.0,0.00024859,2]
[321943717,1712645438826,-216.012721,0.00025063,2]
[321943719,1712645438838,-300.0,0.00026065,2]
[321943722,1712645438847,-300.0,0.00026065,2]
[321943723,1712645438856,-22745.90339692,0.00026066,2]
[321943725,1712645438866,-10732.5138833,0.00026067,2]
[321943727,1712645438875,-172.02982285,0.00026379,2]
[321943731,1712645438886,-137.7843382,0.00026379,2]
[321943734,1712645438895,-3093.8818682,0.00026491,2]
[321943736,1712645438905,-188.24196396,0.00027296,2]
[321943738,1712645438914,-164.315036,0.00027397,2]
[321943739,1712645438923,-157.720323,0.00027397,2]
[321943741,1712645438932,-420.0,0.00028206,2]
[321943744,1712645438941,-620.00043711,0.00028499,2]
[321943745,1712645438951,-237.14597222,0.00028655,2]
[321943747,1712645438960,-420.0,0.00028672,2]
[321943749,1712645438970,-383.81587343,0.00028873,4]
[321943751,1712645438979,-171.815787,0.00029073,2]
[321943753,1712645438989,-153.94352922,0.0002985,2]
[321943755,1712645438998,-383.81587336,0.00030191,4]
[321943757,1712645439007,-587.0,0.00030523,2]
[321943759,1712645439017,-383.81587336,0.00031508,5]
[321943761,1712645439026,-587.0,0.00031539,2]
[321943763,1712645439035,-365.30809216,0.00032825,4]
[321943765,1712645439045,-383.81587336,0.00032826,6]
[321943767,1712645439054,-166.666666,0.00032877,2]
[321943769,1712645439064,-253.35318822,0.00032999,2]
[321943771,1712645439074,-254.35963097,0.00032999,2]
[321943773,1712645439084,-500.0,0.00033,2]
[321943775,1712645439095,-823.0,0.00033031,2]
[321943777,1712645439105,-500.0,0.000335,2]
[321943779,1712645439114,-166.666666,0.00033646,2]
[321943781,1712645439124,-154.9690062,0.00033833,4]
[321943783,1712645439133,-563.99759101,0.00033833,4]
[321943786,1712645439143,-164.315036,0.00033844,2]
[321943788,1712645439153,-500.0,0.00034,2]
[321943789,1712645439162,-383.81587336,0.00034144,6]
[321943791,1712645439171,-166.666666,0.00034415,2]
[321943793,1712645439181,-773.72319618,0.00034427,4]
[321943795,1712645439190,-500.0,0.000345,2]
[321943797,1712645439199,-823.0,0.00034693,2]
[321943799,1712645439209,-428.92024404,0.000349,4]
[321943801,1712645439218,-500.0,0.00035,2]
[321943803,1712645439227,-166.666666,0.00035185,2]
[321943805,1712645439236,-157.720323,0.00035225,2]
[321943807,1712645439245,-383.81587336,0.00035462,7]
[321943809,1712645439254,-500.0,0.000355,2]
[321943811,1712645439263,-500.0,0.00035515,7]
[321943813,1712645439272,-500.0,0.00035515,7]
[321943815,1712645439281,-500.0,0.00035515,7]
[321943817,1712645439291,-399.32622184,0.00035515,7]
[321943819,1712645439300,-500.0,0.00035515,7]
[321943821,1712645439309,-500.0,0.00035515,7]
[321943823,1712645439318,-372.13204389,0.00035515,7]
[321943825,1712645439327,-500.0,0.00035515,7]
[321943827,1712645439339,-376.62546003,0.00035515,7]
[321943829,1712645439348,-500.0,0.00035515,7]
[321943831,1712645439358,-602.47151413,0.00035515,7]
[321943833,1712645439367,-500.0,0.00035515,7]
[321943835,1712645439377,-500.0,0.00035515,7]
[321943837,1712645439386,-500.0,0.00035515,7]
[321943839,1712645439396,-500.0,0.00035515,7]
[321943841,1712645439405,-500.0,0.00035515,7]
[321943842,1712645439414,-500.0,0.00035515,7]
[321943843,1712645439423,-500.0,0.00035515,7]
[321943844,1712645439433,-500.0,0.00035515,7]
[321943845,1712645439442,-500.0,0.00035515,7]
[321943846,1712645439451,-500.0,0.00035515,7]
[321943847,1712645439461,-500.0,0.00035515,7]
[321943848,1712645439473,-500.0,0.00035515,7]
[321943850,1712645439482,-500.0,0.00035515,7]
[321943852,1712645439491,-500.0,0.00035515,7]
[321943854,1712645439502,-500.0,0.00035515,7]
[321943857,1712645439513,-500.0,0.00035515,7]
[321943859,1712645439522,-500.0,0.00035515,7]
[321943860,1712645439532,-500.0,0.00035515,7]
[321943863,1712645439543,-500.0,0.00035515,7]
[321943865,1712645439558,-500.0,0.00035515,7]
[321943866,1712645439568,-500.0,0.00035515,7]
[321943868,1712645439578,-500.0,0.00035515,7]
[321943870,1712645439588,-500.0,0.00035515,7]
[321943872,1712645439598,-500.0,0.00035515,7]
[321943874,1712645439607,-500.0,0.00035515,7]
[321943876,1712645439617,-250.0,0.00035515,7]
[321943878,1712645439626,-2000.0,0.00035516,2]
[321943880,1712645439636,-377.63763256,0.00035516,2]
[321943882,1712645439646,-153.94352922,0.00035516,2]
[321943884,1712645439655,-360.55956051,0.00035612,4]
[321943886,1712645439665,-219.81959882,0.00035612,4]
[321943888,1712645439674,-668.76456763,0.00035612,4]
[321943890,1712645439684,-309.84510532,0.00035612,4]
[321943892,1712645439693,-2149.88972988,0.00035612,7]
[321943895,1712645439703,-1453.28326546,0.00035612,4]
[321943896,1712645439712,-414.42423304,0.00035613,4]
[321943898,1712645439721,-1131.10155601,0.00035613,4]
[321943900,1712645439731,-309.93802479,0.00035613,4]
[321943902,1712645439740,-269.92569213,0.00035613,4]
[321943904,1712645439750,-1003.3692988,0.00035613,4]
[321943906,1712645439759,-464.52912341,0.00035613,4]
[321943909,1712645439768,-19131.19516666,0.00035614,4]
[321943911,1712645439778,-154.98450155,0.00035614,4]
[321943913,1712645439787,-304.63314691,0.00035614,4]
[321943914,1712645439796,-337.3536905,0.00035614,7]
[321943916,1712645439805,-180.30202282,0.00035614,4]
[321943919,1712645439815,-253.46233178,0.00035614,4]
[321943921,1712645439823,-1005.43270002,0.00035614,4]
[321943923,1712645439832,-218.11543718,0.00035614,4]
[321943925,1712645439843,-241.96526573,0.00035614,4]
[321943927,1712645439852,-211.25592763,0.00035614,4]
[321943929,1712645439861,-472.75465607,0.00035615,4]
[321943931,1712645439870,-217779.17891246,0.00035616,3]
[321943936,1712645439916,-1150.24470326,0.00035616,3]
[321943939,1712645439927,-36350.37947904,0.00035616,3]
[321944020,1712645440669,-2626.09121792,0.00035616,3]
[321944022,1712645440681,-7593.00992671,0.00035616,3]
[321944024,1712645440690,-500.0,0.00035616,2]
[321944026,1712645440700,-500.0,0.00035616,2]
[321944028,1712645440709,-500.0,0.00035616,2]
[321944030,1712645440718,-500.0,0.00035616,2]
[321944032,1712645440728,-315.00595375,0.00035616,2]
[321944034,1712645440737,-500.0,0.00035616,2]
[321944036,1712645440746,-530.65921602,0.00035616,2]
[321944038,1712645440755,-500.0,0.00035616,2]
[321944040,1712645440765,-511.76885002,0.00035616,2]
[321944042,1712645440774,-428.90546264,0.00035616,2]
[321944044,1712645440783,-500.0,0.00035616,2]
[321944046,1712645440793,-544.43991186,0.00035616,2]
[321944049,1712645440803,-500.0,0.00035616,2]
[321944051,1712645440813,-236.21067901,0.00035616,2]
[321944053,1712645440825,-263.78932099,0.00035616,2]
[321944055,1712645440834,-512.33534483,0.00035616,2]
[321944057,1712645440845,-500.0,0.00035616,2]
[321944059,1712645440854,-500.0,0.00035616,2]
[321944061,1712645440863,-500.0,0.00035616,2]
[321944063,1712645440873,-500.0,0.00035616,2]
[321944065,1712645440882,-500.0,0.00035616,2]
[321944067,1712645440891,-500.0,0.00035616,2]
[321944069,1712645440900,-500.63435886,0.00035616,2]
[321944071,1712645440909,-500.0,0.00035616,2]
[321944073,1712645440919,-500.0,0.00035616,2]
[321944075,1712645440928,-500.0,0.00035616,2]
[321944077,1712645440938,-480.84671899,0.00035616,2]
[321944079,1712645440947,-500.0,0.00035616,2]
[321944081,1712645440957,-500.0,0.00035616,2]
[321944083,1712645440966,-500.0,0.00035616,2]
[321944085,1712645440976,-500.0,0.00035616,2]
[321944087,1712645440986,-500.0,0.00035616,2]
[321944089,1712645440996,-500.0,0.00035616,2]
[321944091,1712645441006,-500.0,0.00035616,2]
[321944093,1712645441015,-500.0,0.00035616,2]
[321944095,1712645441025,-503.73532672,0.00035616,2]
[321944097,1712645441034,-500.0,0.00035616,2]
[321944099,1712645441044,-500.0,0.00035616,2]
[321944101,1712645441053,-500.0,0.00035616,2]
[321944103,1712645441063,-617.19848953,0.00035616,2]
[321944104,1712645441072,-500.0,0.00035616,2]
[321944107,1712645441081,-402.73779313,0.00035616,2]
[321944109,1712645441094,-502.7509837,0.00035616,2]
[321944111,1712645441103,-500.0,0.00035616,2]
[321944113,1712645441114,-500.0,0.00035616,2]
[321944114,1712645441123,-501.39891535,0.00035616,2]
[321944117,1712645441133,-500.0,0.00035616,2]
[321944119,1712645441142,-502.34184716,0.00035616,2]
[321944121,1712645441151,-500.0,0.00035616,2]
[321944122,1712645441160,-500.75214191,0.00035616,2]
[321944124,1712645441170,-500.0,0.00035616,2]
[321944126,1712645441180,-500.0,0.00035616,2]
[321944128,1712645441189,-203.27474065,0.00035616,2]
[321944130,1712645441198,-500.0,0.00035616,2]
[321944132,1712645441209,-500.0,0.00035616,2]
[321944135,1712645441219,-501.32324898,0.00035616,2]
[321944136,1712645441228,-500.0,0.00035616,2]
[321944138,1712645441238,-500.0,0.00035616,2]
[321944140,1712645441247,-500.0,0.00035616,2]
[321944143,1712645441256,-500.0,0.00035616,2]
[321944145,1712645441266,-500.0,0.00035616,2]
[321944147,1712645441275,-151.0,0.00035616,2]
[321944148,1712645441284,-817.82,0.00035616,2]
[321944150,1712645441293,-500.0,0.00035616,2]
[321944153,1712645441303,-500.0,0.00035616,2]
[321944155,1712645441315,-536.17016406,0.00035616,2]
[321944157,1712645441324,-500.0,0.00035616,2]
[321944159,1712645441333,-500.0,0.00035616,2]
[321944161,1712645441347,-557.06801381,0.00035616,2]
[321944163,1712645441357,-547.35714023,0.00035616,2]
[321944165,1712645441366,-500.0,0.00035616,2]
[321944167,1712645441375,-500.0,0.00035616,2]
[321944169,1712645441385,-500.0,0.00035616,2]
[321944171,1712645441394,-1312.67,0.00035616,2]
[321944173,1712645441403,-500.0,0.00035616,2]
[321944175,1712645441413,-500.0,0.00035616,2]
[321944177,1712645441423,-500.0,0.00035616,14]
[321944179,1712645441433,-500.0,0.00035616,2]
[321944181,1712645441443,-500.0,0.00035616,2]
[321944183,1712645441453,-500.0,0.00035616,2]
[321944185,1712645441462,-556.40707512,0.00035616,2]
[321944187,1712645441473,-509.89917167,0.00035616,2]
[321944189,1712645441483,-500.0,0.00035616,2]
[321944191,1712645441492,-500.0,0.00035616,2]
[321944193,1712645441501,-177.86128928,0.00035616,2]
[321944195,1712645441510,-500.0,0.00035616,2]
[321944197,1712645441521,-500.0,0.00035616,2]
[321944199,1712645441531,-500.0,0.00035616,2]
[321944201,1712645441540,-500.0,0.00035616,2]
[321944203,1712645441551,-500.0,0.00035616,2]
[321944205,1712645441560,-147.65625169,0.00035616,2]
[321944207,1712645441574,-352.34374831,0.00035616,2]
[321944209,1712645441584,-500.0,0.00035616,2]
[321944211,1712645441594,-500.0,0.00035616,2]
[321944213,1712645441603,-500.0,0.00035616,2]
[321944215,1712645441612,-500.0,0.00035616,2]
[321944217,1712645441621,-323.08652532,0.00035616,2]
[321944455,1712645443955,-185.42415271,0.00035616,2]
[321944457,1712645443965,-500.0,0.00035616,2]
[321944459,1712645443974,-1000.0,0.00035616,7]
[321944474,1712645444105,-598.09,0.00035616,2]
[321944476,1712645444114,-500.0,0.00035616,2]
[321944478,1712645444123,-520.63769358,0.00035616,2]
[321944480,1712645444132,-500.0,0.00035616,2]
[321944482,1712645444142,-500.0,0.00035616,2]
[321944484,1712645444151,-500.0,0.00035616,2]
[321944486,1712645444159,-500.0,0.00035616,2]
[321944488,1712645444169,-500.0,0.00035616,2]
[321944490,1712645444178,-756.58,0.00035616,2]
[321944492,1712645444187,-500.0,0.00035616,2]
[321944494,1712645444196,-500.0,0.00035616,2]
[321944496,1712645444206,-628.08,0.00035616,2]
[321944498,1712645444215,-500.0,0.00035616,2]
[321944500,1712645444224,-500.0,0.00035616,2]
[321944502,1712645444233,-500.0,0.00035616,2]
[321944504,1712645444243,-500.0,0.00035616,2]
[321944506,1712645444252,-336.16,0.00035616,2]
[321944508,1712645444262,-500.0,0.00035616,2]
[321944510,1712645444272,-500.0,0.00035616,2]
[321944512,1712645444281,-355.86776838,0.00035616,2]
[321944514,1712645444290,-500.0,0.00035616,2]
[321944516,1712645444299,-2179.93,0.00035616,2]
[321944518,1712645444308,-500.0,0.00035616,2]
[321944520,1712645444318,-500.0,0.00035616,2]
[321944522,1712645444327,-500.0,0.00035616,2]
[321944524,1712645444336,-501.082182,0.00035616,2]
[321944526,1712645444346,-500.0,0.00035616,2]
[321944528,1712645444355,-500.0,0.00035616,2]
[321944530,1712645444365,-987.87,0.00035616,2]
[321944532,1712645444374,-500.0,0.00035616,2]
[321944534,1712645444384,-1374.64,0.00035616,2]
[321944536,1712645444393,-871.31,0.00035616,2]
[321944538,1712645444402,-451.7113124,0.00035616,2]
[321944540,1712645444411,-382.84395156,0.00035616,2]
[321944542,1712645444427,-117.15604844,0.00035616,2]
[321944544,1712645444436,-500.0,0.00035616,2]
[321944546,1712645444445,-502.62062407,0.00035616,2]
[321944548,1712645444454,-85.36354062,0.00035616,2]
[321944767,1712645446735,-1129.6054062,0.00034892,2]
[321944769,1712645446745,-414.63645938,0.00035616,2]
[321944771,1712645446755,-500.0,0.00035616,2]
[321944773,1712645446765,-733.18,0.00035616,2]
[321944775,1712645446774,-58.53870528,0.00035616,2]
[321945769,1712645510124,-40743.5410465,0.0003,30]
[321945770,1712645510153,-346.6013315,0.00035515,7]
[321945771,1712645510177,-420.48222308,0.00035515,7]
[321945772,1712645510214,-1000.0,0.00035616,7]
[321945775,1712645563046,-500.0,0.0003589,14]
[321945776,1712645593232,-28211.2354,0.00036564,30]
[321945777,1712645593267,-1406.324181,0.00036986,120]
[321945778,1712645615583,-2935.70815242,0.00026486,2]
[321945779,1712645615606,-154.98450155,0.00026487,2]
[321945780,1712645615630,-558.4519487,0.00026487,2]
[321945781,1712645615653,-166.666666,0.00033308,2]
[321945782,1712645615674,-304.8613671,0.00033414,7]
[321945783,1712645615697,-828.65375616,0.00033514,4]
[321945784,1712645615721,-50.67360807,0.00033516,2]
[321945785,1712645632903,235.7545422,0.00021,2]
[321945786,1712645633094,1589.63237592,0.0002,2]
[321945788,1712645680696,185.50940362,0.00018,120]
[321945815,1712646444105,-1281.26822599,0.00027281,2]
[321945818,1712646563185,-487.03534855,0.0002728,2]
[321945859,1712646632290,-151.0165788,0.0002728,2]
[321945860,1712646632300,-300.0,0.00027281,2]
[321945861,1712646632310,-50.7836475,0.00027282,2]
[321945862,1712646632322,-22695.11974942,0.00027282,2]
[321945863,1712646632331,-6908.40313979,0.00027283,2]
[321945864,1712646632342,-388.13611876,0.00027297,2]
[321945865,1712646632351,-165.559223,0.00027397,2]
[321945866,1712646632361,-161.426683,0.00027397,2]
[321945867,1712646632371,-420.0,0.00030009,2]
[321945868,1712646632382,-166.666666,0.00032877,2]
[321945869,1712646632391,-587.0,0.0003301,2]
[321945870,1712646632400,-188.24196396,0.00033414,2]
[321945871,1712646632409,-166.666666,0.00033695,2]
[321945872,1712646632419,-216.012721,0.00033973,2]
[321945873,1712646632429,-557.68834538,0.00034464,2]
[321945874,1712646632439,-166.666666,0.00034514,2]
[321945875,1712646632448,-476.28829944,0.00034902,4]
[321945876,1712646632458,-155.38210407,0.00034902,4]
[321945877,1712646632467,-166.666666,0.00035333,2]
[321945878,1712646632477,-202.52105132,0.00035514,2]
[321945879,1712646632486,-202.5210513,0.00035515,2]
[321945880,1712646632495,-2000.0,0.00035516,2]
[321945881,1712646632505,-202.5210513,0.00035516,2]
[321945882,1712646632514,-427.69209921,0.00035613,7]
[321945883,1712646632523,-25704.10069219,0.00035613,4]
[321945884,1712646632533,-607.73164252,0.00035614,2]
[321945885,1712646632542,-572.72116628,0.00035614,4]
[321945886,1712646632552,-245.58327548,0.00035614,4]
[321945887,1712646632563,-361.62704157,0.00035614,4]
[321945888,1712646632572,-389.97372794,0.00035614,7]
[321945889,1712646632581,-1714.32996656,0.00035614,4]
[321945890,1712646632590,-705.18344964,0.00035614,4]
[321945891,1712646632600,-1304.79753645,0.00035614,4]
[321945892,1712646632609,-472.31053071,0.00035614,4]
[321945893,1712646632618,-282.95909793,0.00035614,4]
[321945894,1712646632627,-2621.75226471,0.00035614,4]
[321945895,1712646632636,-387.78428009,0.00035614,7]
[321945896,1712646632645,-500.0,0.00035614,7]
[321945897,1712646632654,-412.98763801,0.00035614,7]
[321945898,1712646632664,-500.0,0.00035614,7]
[321945899,1712646632673,-355.74145424,0.00035614,7]
[321945900,1712646632682,-500.0,0.00035614,7]
[321945901,1712646632691,-500.0,0.00035614,7]
[321945902,1712646632701,-500.0,0.00035614,7]
[321945903,1712646632709,-500.0,0.00035614,7]
[321945904,1712646632719,-500.0,0.00035614,7]
[321945905,1712646632729,-500.0,0.00035614,7]
[321945906,1712646632739,-374.75614969,0.00035614,7]
[321945907,1712646632747,-869.64772348,0.00035615,4]
[321945908,1712646632757,-461.51776053,0.00035615,4]
[321945909,1712646632766,-156.45227621,0.00035615,4]
[321945910,1712646632775,-1621.40200149,0.00035616,3]